bitfinex-derivatives/quotes_BTCF0:USTF0_20250216
["timestamp","ask_amount","ask_price","bid_price","bid_amount"]
[1739716686413,0.002,96902.0,96900.0,0.2376671]
[1739716686608,0.00015488,96906.0,96901.0,0.2063645]
[1739716686914,0.00015488,96906.0,96903.0,0.2063608]
[1739716687115,0.00015488,96906.0,96904.0,0.2063573]
[1739716688303,0.00015488,96906.0,96899.0,0.00104]
[1739716688504,0.2063663,96901.0,96899.0,0.00104]
[1739716688710,0.0321,96900.0,96899.0,0.00104]
[1739716688917,0.0641,96900.0,96899.0,0.00104]
[1739716689218,0.0321,96900.0,96899.0,0.00104]
[1739716689414,0.0321,96900.0,96899.0,4e-05]
[1739716690315,0.006,96900.0,96899.0,0.01717097]
[1739716695811,0.006,96900.0,96899.0,0.03329966]
[1739716696021,0.00015488,96906.0,96899.0,0.03329966]
[1739716696216,0.00015488,96906.0,96905.0,0.2063571]
[1739716696418,0.00015488,96906.0,96905.0,0.22248579]
[1739716696918,0.00015488,96906.0,96905.0,0.23861676]
[1739716699019,0.00315488,96906.0,96905.0,0.23861676]
[1739716700022,0.00415488,96906.0,96905.0,0.23861676]
[1739716700916,0.00415488,96906.0,96905.0,0.01613097]
[1739716701423,0.00215488,96906.0,96905.0,0.01613097]
[1739716701815,0.00183471,96906.0,96905.0,0.01613097]
[1739716703322,0.00183471,96906.0,96902.0,0.81479718]
[1739716703521,0.00183471,96906.0,96902.0,0.81423718]
[1739716704619,0.001,96906.0,96903.0,0.01612936]
[1739716704925,0.001,96906.0,96904.0,0.01612936]
[1739716705520,0.001,96906.0,96905.0,0.01612936]
[1739716707522,0.2063515,96908.0,96905.0,0.01612936]
[1739716707729,0.001,96906.0,96905.0,0.01612936]
[1739716710923,0.2063633,96903.0,96897.0,0.03124]
[1739716711225,0.5671633,96903.0,96897.0,0.03124]
[1739716711431,0.5671633,96903.0,96900.0,0.01613023]
[1739716711619,0.001,96906.0,96900.0,0.01613023]
[1739716711819,0.001,96906.0,96903.0,0.2063609]
[1739716712332,0.2063531,96907.0,96904.0,0.01613023]
[1739716712629,0.56821391,96916.0,96905.0,0.2063559]
[1739716712829,0.36188001,96916.0,96906.0,0.01613023]
[1739716713229,0.36188001,96916.0,96907.0,0.0646]
[1739716713432,0.36188001,96916.0,96907.0,0.08073023]
[1739716713630,0.36188001,96916.0,96908.0,0.0326]
[1739716713938,0.2063449,96911.0,96908.0,0.0326]
[1739716714236,0.2063449,96911.0,96909.0,0.01613023]
[1739716714425,0.2063449,96911.0,96910.0,0.01613023]
[1739716715821,0.2093449,96911.0,96910.0,0.01613023]
[1739716716025,0.20902473,96911.0,96910.0,0.01613023]
[1739716716236,0.21002473,96911.0,96910.0,0.01713023]
[1739716718833,0.21002473,96911.0,96910.0,0.001]
[1739716723027,0.21002473,96911.0,96910.0,0.01713032]
[1739716725035,0.21002473,96911.0,96910.0,0.001]
[1739716727947,0.57082473,96911.0,96910.0,0.001]
[1739716731048,0.57050456,96911.0,96910.0,0.001]
[1739716741655,0.004,96911.0,96910.0,0.2073465]
[1739716742456,0.004,96911.0,96910.0,0.22347606]
[1739716744963,0.001,96911.0,96910.0,0.22347606]
[1739716745155,0.002,96911.0,96910.0,0.22347606]
[1739716745360,0.001,96911.0,96910.0,0.22247606]
[1739716745561,0.002,96911.0,96910.0,0.22247606]
[1739716745967,0.00167983,96911.0,96910.0,0.22247606]
[1739716747667,0.36247983,96911.0,96910.0,0.01612956]
[1739716748272,0.36247983,96911.0,96902.0,0.0633]
[1739716748573,0.3608,96903.0,96902.0,0.0633]
[1739716749068,0.2063635,96902.0,96901.0,0.24707448]
[1739716749262,0.2386635,96902.0,96901.0,0.24707448]
[1739716749861,0.2386635,96902.0,96899.0,4e-05]
[1739716749862,0.0323,96902.0,96899.0,4e-05]
[1739716750062,0.2063678,96900.0,96899.0,4e-05]
[1739716750462,0.21667469,96900.0,96899.0,4e-05]
[1739716750663,0.2063678,96900.0,96899.0,4e-05]
[1739716755868,0.2073678,96900.0,96899.0,4e-05]
[1739716758167,0.2073678,96900.0,96899.0,0.00304]
[1739716761273,0.20704763,96900.0,96899.0,0.00304]
[1739716766280,0.2063721,96898.0,96897.0,4e-05]
[1739716766970,0.20609193,96898.0,96897.0,4e-05]
[1739716767386,0.20709193,96898.0,96897.0,4e-05]
[1739716767584,0.20709193,96898.0,96897.0,0.00404]
[1739716768476,0.20709193,96898.0,96897.0,0.00304]
[1739716769182,0.20709193,96898.0,96897.0,4e-05]
[1739716769390,0.20709193,96898.0,96897.0,0.00404]
[1739716770877,0.20709193,96898.0,96897.0,4e-05]
[1739716771077,0.20709193,96898.0,96897.0,0.00304]
[1739716772284,0.20709193,96898.0,96897.0,4e-05]
[1739716772487,0.20709193,96898.0,96897.0,0.00204]
[1739716774185,0.20681176,96898.0,96897.0,0.00204]
[1739716776186,0.001,96898.0,96883.0,0.0311]
[1739716776485,0.0515996,96886.0,96868.0,0.20717539]
[1739716776683,0.3608,96871.0,96870.0,0.0327]
[1739716776883,0.5672316,96871.0,96870.0,0.2391317]
[1739716777284,0.56703143,96871.0,96870.0,0.2391317]
[1739716777485,0.56703143,96871.0,96870.0,0.24936683]
[1739716777790,0.56703143,96871.0,96870.0,0.26550258]
[1739716778383,0.56703143,96871.0,96870.0,0.27250258]
[1739716778981,0.56703143,96871.0,96870.0,0.25636683]
[1739716779788,0.56687126,96871.0,96870.0,0.32016683]
[1739716780387,0.56687126,96871.0,96870.0,0.11373513]
[1739716780593,0.56687126,96871.0,96870.0,0.12987079]
[1739716781195,0.56675109,96871.0,96870.0,0.12987079]
[1739716782792,0.56675109,96871.0,96870.0,0.11373513]
[1739716783392,0.2064316,96871.0,96870.0,0.11373513]
[1739716784796,0.56825901,96876.0,96872.0,0.2064269]
[1739716785090,0.567219,96876.0,96872.0,0.2064269]
[1739716785595,0.567219,96876.0,96873.0,0.2064233]
[1739716786198,0.2064211,96875.0,96873.0,0.2064233]
[1739716786694,0.2064211,96875.0,96873.0,0.2134233]
[1739716787195,0.2064211,96875.0,96873.0,0.2144233]
[1739716788995,0.36288001,96876.0,96873.0,0.008]
[1739716789291,0.36288001,96876.0,96875.0,0.2064211]
[1739716789292,0.3618,96876.0,96875.0,0.2064211]
[1739716789501,0.3608,96876.0,96875.0,0.2064211]
[1739716789898,0.3608,96876.0,96875.0,0.22255627]
[1739716790490,0.3608,96876.0,96875.0,0.22955627]
[1739716790995,0.5672189,96876.0,96875.0,0.22955627]
[1739716791199,0.5682189,96876.0,96875.0,0.22955627]
[1739716791786,0.5682189,96876.0,96875.0,0.02313517]
[1739716794504,0.2074189,96876.0,96875.0,0.02413517]
[1739716799704,0.2074189,96876.0,96875.0,0.0402702]
[1739716803601,0.2074189,96876.0,96875.0,0.02413517]
[1739716805112,0.2721189,96876.0,96875.0,0.02413517]
[1739716805502,0.2875,96876.0,96866.0,0.24707448]
[1739716805798,0.5672381,96867.0,96866.0,0.24707448]
[1739716806209,0.2064466,96863.0,96862.0,4e-05]
[1739716806800,0.2064466,96863.0,96862.0,0.0161776]
[1739716807400,0.0325,96865.0,96864.0,0.2064445]
[1739716807602,0.3618,96867.0,96866.0,0.2064403]
[1739716807905,0.3608,96867.0,96866.0,0.2225779]
[1739716808212,0.2064277,96872.0,96866.0,0.0161376]
[1739716808508,0.2064277,96872.0,96867.0,0.2225745]
[1739716808709,0.0325,96875.0,96868.0,0.0161376]
[1739716808909,0.2064323,96870.0,96869.0,0.0161376]
[1739716809097,0.2064323,96870.0,96869.0,0.01613593]
[1739716810502,0.2074323,96870.0,96869.0,0.02113593]
[1739716811501,0.2084323,96870.0,96869.0,0.02113593]
[1739716815304,0.2084323,96870.0,96869.0,0.02113636]
[1739716817813,0.2084323,96870.0,96869.0,0.03727246]
[1739716818314,0.2084323,96870.0,96869.0,0.24370636]
[1739716818315,0.002,96870.0,96869.0,0.24370636]
[1739716818813,0.002,96870.0,96869.0,0.2437051]
[1739716820415,0.002,96870.0,96869.0,0.227569]
[1739716823119,0.002,96870.0,96869.0,0.22756952]
[1739716829023,0.002,96870.0,96869.0,0.2114339]
[1739716829225,0.002,96870.0,96869.0,0.22756893]
[1739716830115,0.002,96870.0,96869.0,0.22756879]
[1739716836822,0.002,96870.0,96869.0,0.2114339]
[1739716840631,0.002,96870.0,96869.0,0.005]
[1739716844831,0.2084317,96870.0,96869.0,0.005]
[1739716855729,0.5692317,96870.0,96869.0,0.005]
[1739716866146,0.5692317,96870.0,96869.0,0.02113701]
[1739716866340,0.5692317,96870.0,96869.0,0.02113725]
[1739716867536,0.7910317,96870.0,96861.0,0.18586613]
[1739716867741,0.5672488,96862.0,96861.0,0.11456337]
[1739716868939,0.2064552,96859.0,96858.0,4e-05]
[1739716869138,0.21664002,96859.0,96858.0,4e-05]
[1739716869340,0.32216002,96859.0,96858.0,4e-05]
[1739716869547,0.54396002,96859.0,96858.0,4e-05]
[1739716871550,0.54496002,96859.0,96858.0,0.00204]
[1739716875655,0.54596002,96859.0,96858.0,0.00204]
[1739716876350,0.4302552,96859.0,96858.0,0.00204]
[1739716877449,0.4302552,96859.0,96858.0,4e-05]
[1739716879560,0.4302552,96859.0,96858.0,0.01617919]
[1739716886449,0.4302552,96859.0,96858.0,0.01617915]
[1739716889754,0.2238,96859.0,96858.0,0.01617915]
[1739716889953,0.2238,96859.0,96858.0,0.22263645]
[1739716890559,0.2238,96859.0,96858.0,0.22263552]
[1739716892155,0.002,96859.0,96858.0,0.22263552]
[1739716896164,0.002,96859.0,96858.0,0.23877337]
[1739716896465,0.002,96859.0,96858.0,0.22263515]
[1739716896667,0.002,96859.0,96858.0,0.2387731]
[1739716896860,0.002,96859.0,96858.0,0.22263525]
[1739716900274,0.002,96859.0,96858.0,0.2064973]
[1739716900473,0.002,96859.0,96858.0,0.22263528]
[1739716900673,0.002,96859.0,96858.0,0.2064973]
[1739716901473,0.2084552,96859.0,96858.0,0.2064973]
[1739716901777,0.2084552,96859.0,96858.0,0.22263535]
[1739716902286,0.2084552,96859.0,96858.0,0.23877342]
[1739716902787,0.2084552,96859.0,96858.0,0.22263529]
[1739716910292,0.2084552,96859.0,96858.0,0.22263534]
[1739716910995,0.2084552,96859.0,96858.0,0.01617804]
[1739716913488,0.5692552,96859.0,96858.0,0.01617804]
[1739716914382,0.5692552,96859.0,96858.0,0.01617809]
[1739716915989,0.2084552,96859.0,96858.0,0.01617809]
[1739716918889,0.2084552,96859.0,96858.0,0.01617812]
[1739716920297,0.2084552,96859.0,96858.0,0.01617798]
[1739716921697,0.2084552,96859.0,96858.0,0.01617812]
[1739716923699,0.2084552,96859.0,96858.0,0.222635]
[1739716925594,0.2084552,96859.0,96858.0,0.22263499]
[1739716927203,0.002,96859.0,96858.0,0.22263499]
[1739716927807,0.2084552,96859.0,96858.0,0.01617769]
[1739716929001,0.002,96859.0,96858.0,0.22263499]
[1739716929803,0.002,96859.0,96858.0,0.24845514]
[1739716931499,0.002,96859.0,96858.0,0.26459113]
[1739716931701,0.002,96859.0,96858.0,0.26458754]
[1739716932704,0.002,96859.0,96858.0,0.23876954]
[1739716934004,0.15437457,96878.0,96873.0,0.2064235]
[1739716934307,0.15437457,96878.0,96874.0,0.12667224]
[1739716934509,0.15437457,96878.0,96875.0,0.01613625]
[1739716934708,0.15437457,96878.0,96876.0,0.01613625]
[1739716934907,0.15437457,96878.0,96877.0,0.01613625]
[1739716935211,0.15637457,96878.0,96877.0,0.01613625]
[1739716936003,0.15637457,96878.0,96877.0,0.03227095]
[1739716936200,0.16337457,96878.0,96877.0,0.03227095]
[1739716936807,0.11347457,96878.0,96877.0,0.03327095]
[1739716937116,0.06357457,96878.0,96877.0,0.03327095]
[1739716937507,0.18443641,96888.0,96877.0,0.03327095]
[1739716937813,0.18443641,96888.0,96883.0,0.3608]
[1739716938009,0.18443641,96888.0,96887.0,0.2063955]
[1739716938212,0.18443641,96888.0,96887.0,0.22253175]
[1739716938515,0.0332,96895.0,96887.0,0.22253175]
[1739716938516,0.15467876,96889.0,96888.0,0.2063934]
[1739716938716,0.15467876,96889.0,96888.0,0.22252965]
[1739716939106,0.15467876,96889.0,96888.0,0.23866435]
[1739716939907,0.15867876,96889.0,96888.0,0.23966435]
[1739716940326,0.15867876,96889.0,96888.0,0.27116435]
[1739716940709,0.16467876,96889.0,96888.0,0.27116435]
[1739716941713,0.16467876,96889.0,96888.0,0.27115991]
[1739716942718,0.01,96889.0,96888.0,0.27115991]
[1739716943806,0.01,96889.0,96888.0,0.27115994]
[1739716947722,0.01,96889.0,96888.0,0.27115973]
[1739716949628,0.01,96889.0,96888.0,0.27115919]
[1739716950222,0.01,96889.0,96888.0,0.27115921]
[1739716951926,0.01,96889.0,96888.0,0.27115929]
[1739716959831,0.01,96889.0,96888.0,0.27115926]
[1739716963233,0.01,96889.0,96888.0,1.30115926]
[1739716969531,8e-05,96896.0,96888.0,1.09476586]
[1739716969732,8e-05,96896.0,96895.0,0.2063785]
[1739716969933,8e-05,96896.0,96895.0,0.22250966]
[1739716970235,8e-05,96896.0,96895.0,0.22250942]
[1739716970429,8e-05,96896.0,96895.0,0.23864412]
[1739716971844,0.00808,96896.0,96895.0,0.23964412]
[1739716972544,0.00808,96896.0,96895.0,0.24064412]
[1739716974829,0.00808,96896.0,96895.0,0.24064421]
[1739716978437,0.00808,96896.0,96895.0,0.24064425]
[1739716980440,0.2144563,96896.0,96895.0,0.03426575]
[1739716982448,0.2144563,96896.0,96895.0,0.03426677]
[1739716983847,0.2063827,96893.0,96892.0,0.23993393]
[1739716984051,0.2063827,96893.0,96892.0,0.09023393]
[1739716984052,0.5671827,96893.0,96892.0,0.09023393]
[1739716984249,0.2064083,96881.0,96880.0,0.30891448]
[1739716984446,0.5672083,96881.0,96880.0,0.30891448]
[1739716985555,0.5682083,96881.0,96880.0,0.30991448]
[1739716985954,0.5702083,96881.0,96880.0,0.30991448]
[1739716986952,0.5702083,96881.0,96880.0,0.001]
[1739716992247,0.3638,96881.0,96880.0,0.001]
[1739716992452,0.3638,96881.0,96880.0,0.2074104]
[1739716992661,0.003,96881.0,96880.0,0.2074104]
[1739716995871,0.003,96881.0,96880.0,0.22354352]
[1739716997863,0.003,96881.0,96880.0,0.22354262]
[1739716998350,0.003,96881.0,96880.0,0.22354256]
[1739717001060,0.003,96881.0,96880.0,0.40887279]
[1739717001865,0.003,96881.0,96880.0,0.40887264]
[1739717003768,0.003,96881.0,96880.0,0.39274063]
[1739717004064,0.003,96881.0,96880.0,0.40887263]
[1739717004662,0.00012,96896.0,96880.0,0.017132]
[1739717004862,0.00012,96896.0,96895.0,0.2063785]
[1739717005062,0.00012,96896.0,96895.0,0.2225105]
[1739717005866,8e-05,96896.0,96895.0,0.2225105]
[1739717006456,8e-05,96896.0,96895.0,0.22250964]
[1739717006662,0.00108,96896.0,96895.0,0.22350964]
[1739717008062,0.00108,96896.0,96895.0,0.22350929]
[1739717008267,0.00808,96896.0,96895.0,0.22450929]
[1739717009870,0.3618,96902.0,96895.0,0.37893079]
[1739717009871,0.001,96902.0,96895.0,0.37893079]
[1739717010072,0.36067983,96911.0,96910.0,0.2063465]
[1739717010275,0.36067983,96911.0,96910.0,0.22247607]
[1739717010570,0.36051966,96911.0,96910.0,0.22247607]
[1739717010778,0.36051966,96911.0,96910.0,0.23860457]
[1739717011172,0.36031949,96911.0,96910.0,0.23860457]
[1739717011374,0.36031949,96911.0,96910.0,0.23960457]
[1739717011770,0.36007932,96911.0,96910.0,0.03325807]
[1739717012166,0.35979915,96911.0,96910.0,0.03325807]
[1739717012571,0.35979915,96911.0,96910.0,0.01712957]
[1739717012773,0.35947898,96911.0,96910.0,0.01712957]
[1739717013173,0.36247898,96911.0,96910.0,0.01812957]
[1739717013986,0.36247898,96911.0,96910.0,0.01813021]
[1739717017579,0.36215881,96911.0,96910.0,0.01813021]
[1739717020183,0.36215881,96911.0,96910.0,0.002]
[1739717021183,0.36215881,96911.0,96910.0,0.04393893]
[1739717021891,0.36215881,96911.0,96910.0,0.002]
[1739717022083,0.36215881,96911.0,96910.0,0.01813053]
[1739717022483,0.56850321,96911.0,96910.0,0.01813053]
[1739717024294,0.56850321,96911.0,96910.0,0.01813036]
[1739717026492,0.36215881,96911.0,96910.0,0.22447686]
[1739717027291,0.003,96911.0,96910.0,0.22447686]
[1739717029891,0.003,96911.0,96910.0,0.2083465]
[1739717030090,0.003,96911.0,96910.0,0.22447488]
[1739717030598,0.003,96911.0,96910.0,0.22447477]
[1739717030994,0.003,96911.0,96910.0,0.01812827]
[1739717031197,0.003,96911.0,96910.0,0.20355199]
[1739717031394,0.00267983,96911.0,96910.0,0.20355199]
[1739717032003,0.00267983,96911.0,96910.0,0.20355292]
[1739717032188,0.00267983,96911.0,96910.0,0.40989942]
[1739717033304,0.3618,96916.0,96915.0,0.2063359]
[1739717033594,0.3608,96916.0,96915.0,0.2224651]
[1739717034002,0.3608,96916.0,96915.0,0.22246379]
[1739717034401,0.3608,96916.0,96915.0,0.01612789]
[1739717035995,0.3608,96916.0,96915.0,0.01812789]
[1739717037195,0.3608,96916.0,96915.0,0.22446379]
[1739717039397,0.3608,96916.0,96915.0,0.01812789]
[1739717041498,0.3608,96916.0,96915.0,0.01812784]
[1739717041900,0.5671337,96916.0,96915.0,0.01812784]
[1739717045805,0.5671337,96916.0,96915.0,0.001]
[1739717046108,0.5671337,96916.0,96915.0,0.0171287]
[1739717046401,0.3608,96916.0,96915.0,0.2234646]
[1739717046602,0.36047983,96916.0,96915.0,0.2234646]
[1739717048202,0.0001548,96920.0,96919.0,0.2063274]
[1739717048403,0.0001548,96920.0,96919.0,0.2224561]
[1739717049099,0.001,96924.0,96923.0,0.2063189]
[1739717049301,0.00024,96925.0,96924.0,0.2063167]
[1739717049506,0.00024,96925.0,96924.0,1.2524454]
[1739717050005,0.2062852,96939.0,96933.0,0.2062971]
[1739717050205,0.15453631,96941.0,96938.0,0.2062866]
[1739717050411,0.15453631,96941.0,96939.0,0.2224135]
[1739717050603,0.15453631,96941.0,96940.0,0.2062827]
[1739717050804,0.15453631,96941.0,96940.0,0.2224114]
[1739717052307,0.15417614,96941.0,96940.0,0.2224114]
[1739717052700,0.15377597,96941.0,96940.0,0.2224114]
[1739717053116,0.1533358,96941.0,96940.0,0.2244114]
[1739717053807,0.15285563,96941.0,96940.0,0.22440656]
[1739717054201,0.0001548,96946.0,96945.0,0.206272]
[1739717054405,0.0001548,96946.0,96945.0,0.22239586]
[1739717054711,0.36039463,96948.0,96947.0,0.2062678]
[1739717054906,0.36039463,96948.0,96947.0,0.22239166]
[1739717055102,0.36039463,96948.0,96947.0,0.01612386]
[1739717055409,0.56606006,96948.0,96947.0,0.04672386]
[1739717056006,0.56606006,96948.0,96947.0,0.04772386]
[1739717056405,0.56541989,96948.0,96947.0,0.04772386]
[1739717057206,0.56541989,96948.0,96947.0,0.0316]
[1739717057408,0.56541989,96948.0,96947.0,0.04772314]
[1739717057811,0.56477972,96948.0,96947.0,0.04772314]
[1739717061111,0.56413955,96948.0,96947.0,0.04772314]
[1739717063309,0.56413955,96948.0,96947.0,0.0316]
[1739717066417,0.56413955,96948.0,96947.0,0.0477238]
[1739717069621,0.35787395,96948.0,96947.0,0.0477238]
[1739717070825,0.35787395,96948.0,96947.0,0.2539916]
[1739717071426,0.3608,96948.0,96947.0,0.2539916]
[1739717072823,0.3608,96948.0,96947.0,0.0477238]
[1739717073822,0.2062624,96950.0,96947.0,0.0477238]
[1739717074029,0.2062645,96949.0,96948.0,0.0161238]
[1739717075121,0.2062645,96949.0,96948.0,0.01612329]
[1739717075322,0.3608,96952.0,96948.0,0.01612329]
[1739717075621,0.2062603,96951.0,96949.0,0.01612329]
[1739717075826,0.2062592,96951.0,96950.0,0.01612329]
[1739717076429,0.20561903,96951.0,96950.0,0.01612329]
[1739717077226,0.20561903,96951.0,96950.0,0.01712329]
[1739717078824,0.20561903,96951.0,96950.0,0.01612329]
[1739717079723,0.3608,96952.0,96950.0,0.01712329]
[1739717080035,0.5670571,96952.0,96951.0,0.01612329]
[1739717080230,0.5670571,96952.0,96951.0,0.08202329]
[1739717081739,0.2062571,96952.0,96951.0,0.08202329]
[1739717082035,0.2062571,96952.0,96951.0,0.08302329]
[1739717082232,0.00010237,96957.0,96951.0,0.08302329]
[1739717082431,0.2062571,96952.0,96951.0,0.0669]
[1739717082626,0.5670571,96952.0,96951.0,0.08202281]
[1739717083339,0.5670571,96952.0,96951.0,0.08402281]
[1739717083839,0.5670571,96952.0,96951.0,0.08302281]
[1739717085128,0.5670571,96952.0,96951.0,0.08302284]
[1739717085741,0.5670571,96952.0,96951.0,0.0830228]
[1739717086740,0.5670571,96952.0,96951.0,0.0820228]
[1739717087240,0.5670571,96952.0,96951.0,0.08202278]
[1739717088340,0.00010237,96957.0,96951.0,0.08202278]
[1739717088542,0.00010237,96957.0,96953.0,0.2062544]
[1739717088737,0.00010237,96957.0,96954.0,0.01612278]
[1739717088937,0.00010237,96957.0,96955.0,0.01612278]
[1739717089137,0.00010237,96957.0,96956.0,0.01612233]
[1739717089852,0.00010237,96957.0,96956.0,0.02662278]
[1739717090549,0.00010237,96957.0,96956.0,0.23287148]
[1739717091053,0.15472737,96960.0,96959.0,0.2062423]
[1739717091054,0.15418957,96960.0,96959.0,0.2062423]
[1739717091254,0.15418957,96960.0,96959.0,0.01612233]
[1739717092444,0.36042977,96960.0,96959.0,0.01612233]
[1739717093045,0.15418957,96960.0,96959.0,0.0161213]
[1739717093557,0.36042977,96960.0,96959.0,0.0191213]
[1739717093853,0.36042977,96960.0,96959.0,0.01912114]
[1739717094448,0.2062402,96960.0,96959.0,0.003]
[1739717101350,0.3618,96961.0,96960.0,0.2062402]
[1739717101549,0.3608,96961.0,96960.0,0.2391402]
[1739717101956,0.3608,96961.0,96960.0,0.25526111]
[1739717103355,0.3608,96961.0,96960.0,0.25826111]
[1739717103762,0.3608,96961.0,96960.0,0.05202091]
[1739717104461,0.3608,96961.0,96960.0,0.0359]
[1739717104759,0.3608,96961.0,96960.0,0.05202085]
[1739717105954,0.36015983,96961.0,96960.0,0.05202085]
[1739717106956,0.36015983,96961.0,96960.0,0.0359]
[1739717109166,0.36015983,96961.0,96960.0,0.003]
[1739717109467,0.43945983,96961.0,96953.0,0.18511591]
[1739717109661,0.5670529,96954.0,96953.0,0.18511591]
[1739717110969,0.2062572,96952.0,96951.0,0.18511591]
[1739717111767,0.3608,96954.0,96951.0,0.18511591]
[1739717111969,0.5670544,96954.0,96952.0,0.2393568]
[1739717112471,0.5670544,96954.0,96952.0,0.0331]
[1739717113359,0.5670544,96954.0,96952.0,0.2393556]
[1739717114169,0.5670544,96954.0,96952.0,0.2423556]
[1739717115364,0.5670544,96954.0,96952.0,0.0361]
[1739717117572,0.5670544,96954.0,96953.0,0.01612262]
[1739717118574,0.5670544,96954.0,96953.0,0.01612279]
[1739717119069,0.3608,96954.0,96953.0,0.01612279]
[1739717119273,0.3608,96962.0,96959.0,0.2062414]
[1739717119472,0.3608,96962.0,96960.0,0.08152279]
[1739717119771,0.5670364,96962.0,96961.0,0.04882279]
[1739717120474,0.5670364,96962.0,96961.0,0.0327]
[1739717120673,0.5670364,96962.0,96961.0,0.04882142]
[1739717120872,0.56639623,96962.0,96961.0,0.04882142]
[1739717121372,0.36015983,96962.0,96961.0,0.05182142]
[1739717123169,4e-05,96967.0,96961.0,0.05182142]
[1739717123369,0.2062324,96964.0,96962.0,0.01612142]
[1739717123569,0.0899924,96971.0,96963.0,0.01612142]
[1739717123874,0.2062277,96966.0,96964.0,0.01612142]
[1739717124063,0.2062277,96966.0,96965.0,0.01612142]
[1739717124672,0.20554753,96966.0,96965.0,0.01612104]
[1739717125075,0.20482736,96966.0,96965.0,0.0161212]
[1739717125366,0.20482736,96966.0,96965.0,0.0181212]
[1739717126364,0.20406719,96966.0,96965.0,0.0181212]
[1739717126564,0.20406719,96966.0,96965.0,0.01812109]
[1739717126774,0.20326702,96966.0,96965.0,0.01812109]
[1739717127667,0.15457145,96975.0,96965.0,0.22435059]
[1739717127866,0.15457145,96975.0,96966.0,0.01612109]
[1739717128070,0.206219,96970.0,96967.0,0.01612109]
[1739717128274,0.206219,96970.0,96968.0,0.01612109]
[1739717128473,0.206219,96970.0,96969.0,0.01612109]
[1739717128864,0.15457145,96975.0,96969.0,0.02620639]
[1739717129179,0.15457145,96975.0,96971.0,0.2062168]
[1739717129370,0.15457145,96975.0,96971.0,0.22233789]
[1739717129571,0.15457145,96975.0,96971.0,0.25263789]
[1739717131485,0.15381128,96975.0,96974.0,0.2062104]
[1739717131773,0.15297111,96975.0,96974.0,0.22233149]
[1739717132964,0.15297111,96975.0,96974.0,0.22232949]
[1739717133677,0.15297111,96975.0,96974.0,0.22332949]
[1739717134081,0.15397111,96975.0,96974.0,0.22332949]
[1739717134578,0.001,96975.0,96974.0,0.22332949]
[1739717134982,0.001,96981.0,96978.0,0.2061999]
[1739717135176,0.1048,96984.0,96979.0,0.08041909]
[1739717135479,0.00154709,96995.0,96980.0,0.01611909]
[1739717135779,0.09038267,96997.0,96981.0,0.01611909]
[1739717135780,0.2061898,96984.0,96981.0,0.01611909]
[1739717135974,0.2061898,96984.0,96982.0,0.04751909]
[1739717136178,0.2061898,96984.0,96983.0,0.01611909]
[1739717137172,0.2061807,96988.0,96983.0,0.01611909]
[1739717137369,0.2061807,96988.0,96984.0,0.01611909]
[1739717137583,0.2061829,96987.0,96985.0,0.01611909]
[1739717137783,0.2061829,96987.0,96986.0,0.01611909]
[1739717138279,0.09038267,96997.0,96986.0,0.01611909]
[1739717138484,0.2061764,96990.0,96987.0,0.0329]
[1739717138686,0.2061798,96989.0,96988.0,0.0327]
[1739717139183,0.2061798,96989.0,96988.0,0.04306226]
[1739717139883,0.2061798,96989.0,96988.0,0.24924286]
[1739717140579,0.2061798,96989.0,96988.0,0.04406226]
[1739717140976,0.0801,96997.0,96988.0,0.04406226]
[1739717141177,0.206169,96994.0,96991.0,0.206173]
[1739717141485,0.206169,96994.0,96992.0,0.0315]
[1739717141881,0.20617,96993.0,96992.0,0.2376721]
[1739717142390,0.1,97000.0,96995.0,0.2061649]
[1739717142578,0.1,97000.0,96996.0,0.0308]
[1739717142778,0.1048,96999.0,96996.0,0.0308]
[1739717142974,0.2061596,96998.0,96997.0,0.04921702]
[1739717144682,0.1,97000.0,96997.0,0.05021702]
[1739717144886,0.1,97000.0,96998.0,0.24806092]
[1739717145087,0.1,97000.0,96999.0,0.04190127]
[1739717145283,0.1,97000.0,96999.0,0.04190111]
[1739717145488,0.1,97000.0,96999.0,0.05801616]
[1739717146288,0.1,97000.0,96999.0,0.05801419]
[1739717147083,0.1,97000.0,96999.0,0.05901419]
[1739717147786,0.1,97000.0,96999.0,0.06001419]
[1739717151584,0.1,97000.0,96999.0,0.08579752]
[1739717152391,0.1,97000.0,96999.0,0.06001419]
[1739717154489,0.1,97000.0,96999.0,0.05901419]
[1739717156593,0.1,97000.0,96999.0,0.05901263]
[1739717156793,0.3061552,97000.0,96999.0,0.05901263]
[1739717161796,0.3061552,97000.0,96999.0,0.05901413]
[1739717163209,0.3061552,97000.0,96999.0,0.05901411]
[1739717164599,0.3061552,97000.0,96999.0,0.05901495]
[1739717164798,0.3061552,97000.0,96999.0,0.03323007]
[1739717165208,0.3061552,97000.0,96999.0,0.01711502]
[1739717167497,0.3061552,97000.0,96999.0,0.001]
[1739717168411,0.3061552,97000.0,96999.0,0.01711686]
[1739717171607,0.3061552,97000.0,96999.0,0.01711667]
[1739717180920,0.3061552,97000.0,96999.0,0.01711666]
[1739717181120,0.3061552,97000.0,96999.0,1.04711666]
[1739717181715,0.3061552,97000.0,96999.0,0.01711666]
[1739717182115,0.3061552,97000.0,96999.0,0.02722571]
[1739717182916,0.3061552,97000.0,96999.0,0.23338286]
[1739717185526,0.3061552,97000.0,96999.0,0.02722556]
[1739717187219,0.1,97000.0,96999.0,0.02722556]
[1739717187427,0.1,97000.0,96999.0,0.23338096]
[1739717187830,0.1,97000.0,96999.0,0.25916426]
[1739717189617,0.15446078,97012.0,96999.0,0.05300696]
[1739717189817,0.36059078,97012.0,97003.0,0.566948]
[1739717190022,0.36059078,97012.0,97004.0,0.07489791]
[1739717190220,0.36059078,97012.0,97005.0,0.04189791]
[1739717190421,0.36059078,97012.0,97004.0,0.033]
[1739717190422,0.36059078,97012.0,97006.0,0.04189791]
[1739717190612,0.36059078,97012.0,97007.0,0.07479791]
[1739717190813,0.36059078,97012.0,97008.0,0.07479791]
[1739717191017,0.2061321,97011.0,97009.0,0.04189791]
[1739717191322,0.2061321,97011.0,97010.0,0.04189791]
[1739717192021,0.15446078,97012.0,97010.0,0.24803131]
[1739717192227,0.15446078,97012.0,97011.0,0.01611461]
[1739717192419,0.15446078,97012.0,97011.0,0.04189587]
[1739717192821,0.206115,97019.0,97011.0,0.04189587]
[1739717193119,0.206115,97019.0,97012.0,0.04189579]
[1739717193319,0.206115,97019.0,97013.0,0.04189579]
[1739717193528,0.206115,97019.0,97015.0,0.2061232]
[1739717193730,0.206115,97019.0,97016.0,0.07751461]
[1739717193914,0.206115,97019.0,97017.0,0.01611461]